fUSD/lending_fUSD_20240503
["ID","MTS","AMOUNT","RATE_DAILY","PERIOD"]
[325345798,1714745473753,-500.0,0.00044109,31]
[325345799,1714745473763,-500.0,0.00044109,31]
[325345800,1714745473772,-1017.41,0.00044109,31]
[325345801,1714745473781,-500.0,0.00044109,31]
[325345802,1714745473790,-1424.56,0.00044109,31]
[325345803,1714745473800,-1505.24,0.00044109,31]
[325345804,1714745473810,-500.0,0.00044109,31]
[325345805,1714745473820,-500.0,0.00044109,31]
[325345806,1714745473829,-4369.24,0.00044109,31]
[325345807,1714745473840,-500.0,0.00044109,31]
[325345808,1714745473849,-500.0,0.00044109,31]
[325345809,1714745473858,-910.58,0.00044109,31]
[325345810,1714745473869,-500.0,0.00044109,31]
[325345811,1714745473881,-500.0,0.00044109,31]
[325345812,1714745473890,-500.0,0.00044109,31]
[325345813,1714745473899,-500.0,0.00044109,31]
[325345814,1714745473909,-500.0,0.00044109,31]
[325345815,1714745473921,-500.0,0.00044109,31]
[325345816,1714745473931,-500.0,0.00044109,31]
[325345817,1714745473940,-500.0,0.00044109,31]
[325345818,1714745473950,-500.0,0.00044109,31]
[325345819,1714745473962,-2060.24,0.00044109,31]
[325345820,1714745473971,-500.0,0.00044109,31]
[325345821,1714745473980,-1295.43,0.00044109,31]
[325345822,1714745473989,-562.23,0.00044109,31]
[325345823,1714745474001,-510.37433277,0.00044109,31]
[325345824,1714745474010,-506.08290431,0.00044109,31]
[325345825,1714745474020,-738.26,0.00044109,31]
[325345826,1714745474029,-1597.59,0.00044109,31]
[325345827,1714745474039,-500.0,0.00044109,31]
[325345828,1714745474048,-814.94,0.00044109,31]
[325345829,1714745474057,-500.0,0.00044109,31]
[325345830,1714745474067,-500.0,0.00044109,31]
[325345831,1714745474076,-1087.87,0.00044109,31]
[325345832,1714745474085,-638.11,0.00044109,31]
[325345833,1714745474094,-1062.53,0.00044109,31]
[325345834,1714745474104,-2030.52,0.00044109,31]
[325345835,1714745474113,-2336.22,0.00044109,31]
[325345836,1714745474122,-506.98442193,0.00044109,31]
[325345837,1714745474131,-767.77,0.00044109,31]
[325345838,1714745474141,-1215.57,0.00044109,31]
[325345839,1714745474150,-500.0,0.00044109,31]
[325345840,1714745474158,-867.54,0.00044109,31]
[325345841,1714745474167,-650.71,0.00044109,31]
[325345842,1714745474177,-500.0,0.00044109,31]
[325345843,1714745474186,-3820.54,0.00044109,31]
[325345844,1714745474196,-500.0,0.00044109,31]
[325345845,1714745474205,-500.0,0.00044109,31]
[325345846,1714745474215,-500.0,0.00044109,31]
[325345847,1714745474224,-1161.88,0.00044109,31]
[325345848,1714745474233,-1087.79,0.00044109,31]
[325345849,1714745474243,-500.0,0.00044109,31]
[325345850,1714745474252,-414.15256759,0.00044109,31]
[325345851,1714745474262,-1359.99,0.00044109,31]
[325345852,1714745474270,-4996.54,0.00044109,31]
[325345853,1714745474280,-1509.61,0.00044109,31]
[325345854,1714745474289,-500.0,0.00044109,31]
[325345855,1714745474299,-500.0,0.00044109,31]
[325345856,1714745474308,-500.0,0.00044109,31]
[325345857,1714745474318,-500.0,0.00044109,31]
[325345858,1714745474327,-1909.45,0.00044109,31]
[325345859,1714745474337,-500.0,0.00044109,31]
[325345860,1714745474347,-599.22,0.00044109,31]
[325345861,1714745474356,-686.06,0.00044109,31]
[325345862,1714745474366,-500.0,0.00044109,31]
[325345863,1714745474375,-500.0,0.00044109,31]
[325345864,1714745474391,-500.0,0.00044109,31]
[325345865,1714745474401,-1021.19,0.00044109,31]
[325345866,1714745474411,-497.83931543,0.00044109,31]
[325345867,1714745474421,-500.0,0.00044109,31]
[325345868,1714745474431,-500.0,0.00044109,31]
[325345869,1714745474441,-500.0,0.00044109,31]
[325345870,1714745474451,-948.64,0.00044109,31]
[325345871,1714745474460,-858.52,0.00044109,31]
[325345872,1714745474470,-500.0,0.00044109,31]
[325345873,1714745474480,-310.54,0.00044109,7]
[325345874,1714745474489,-500.0,0.00044109,31]
[325345875,1714745474499,-500.0,0.00044109,31]
[325345876,1714745474509,-864.36,0.00044109,31]
[325345877,1714745474519,-500.0,0.00044109,31]
[325345878,1714745474528,-500.0,0.00044109,31]
[325345879,1714745474537,-178.89103243,0.00044109,31]
[325345880,1714745474547,-502.67246169,0.00044109,31]
[325345881,1714745474556,-500.0,0.00044109,31]
[325345882,1714745474565,-500.0,0.00044109,31]
[325345883,1714745474575,-1206.91,0.00044109,31]
[325345884,1714745474584,-500.0,0.00044109,31]
[325345885,1714745474594,-15207.38,0.00044109,31]
[325345886,1714745474603,-490.542301,0.00044109,14]
[325345887,1714745474612,-500.0,0.00044109,31]
[325345888,1714745474622,-500.0,0.00044109,31]
[325345889,1714745474633,-500.0,0.00044109,31]
[325345890,1714745474643,-500.0,0.00044109,31]
[325345891,1714745474652,-574.07,0.00044109,31]
[325345892,1714745474661,-490.542301,0.00044109,14]
[325345893,1714745474671,-500.0,0.00044109,31]
[325345894,1714745474680,-586.94,0.00044109,31]
[325345895,1714745474689,-686.99,0.00044109,31]
[325345896,1714745474699,-921.52,0.00044109,31]
[325345897,1714745474708,-1002.0,0.00044109,31]
[325345898,1714745474717,-500.0,0.00044109,31]
[325345899,1714745474727,-1165.58,0.00044109,31]
[325345900,1714745474737,-500.0,0.00044109,31]
[325345901,1714745474747,-500.0,0.00044109,31]
[325345902,1714745474756,-500.0,0.00044109,31]
[325345903,1714745474766,-500.0,0.00044109,31]
[325345904,1714745474775,-500.0,0.00044109,31]
[325345905,1714745474784,-3778.33,0.00044109,31]
[325345906,1714745474794,-500.0,0.00044109,31]
[325345907,1714745474803,-1651.3,0.00044109,31]
[325345908,1714745474812,-1935.6,0.00044109,31]
[325345909,1714745474822,-500.0,0.00044109,31]
[325345910,1714745474831,-1063.59,0.00044109,31]
[325345911,1714745474841,-500.0,0.00044109,31]
[325345912,1714745474850,-500.0,0.00044109,31]
[325345913,1714745474860,-657.61,0.00044109,31]
[325345914,1714745474872,-500.0,0.00044109,31]
[325345915,1714745474885,-500.0,0.00044109,31]
[325345916,1714745474894,-950.146732,0.00044109,14]
[325345917,1714745474903,-3598.13,0.00044109,31]
[325345918,1714745474915,-742.37,0.00044109,31]
[325345919,1714745474925,-3889.53,0.00044109,31]
[325345920,1714745474942,-500.0,0.00044109,31]
[325345921,1714745474951,-1198.87,0.00044109,31]
[325345922,1714745474961,-500.0,0.00044109,31]
[325345923,1714745474972,-1032.37,0.00044109,31]
[325345924,1714745474982,-500.0,0.00044109,31]
[325345925,1714745474993,-2271.78,0.00044109,31]
[325345926,1714745475002,-1848.39,0.00044109,31]
[325345927,1714745475013,-950.146732,0.00044109,14]
[325345928,1714745475022,-500.0,0.00044109,31]
[325345929,1714745475032,-500.0,0.00044109,31]
[325345930,1714745475042,-1481.27,0.00044109,31]
[325345931,1714745475051,-151.0,0.00044109,14]
[325345932,1714745475060,-3939.87,0.00044109,31]
[325345933,1714745475069,-500.0,0.00044109,31]
[325345934,1714745475079,-1608.24,0.00044109,31]
[325345935,1714745475088,-2601.16,0.00044109,31]
[325345936,1714745475098,-500.0,0.00044109,31]
[325345937,1714745475107,-157.80409177,0.00044109,31]
[325345938,1714745475117,-500.0,0.00044109,31]
[325345939,1714745475127,-880.982265,0.00044109,14]
[325345940,1714745475140,-500.0,0.00044109,31]
[325345941,1714745475150,-241.518024,0.00044109,14]
[325345942,1714745475160,-151.0,0.00044109,14]
[325345943,1714745475169,-500.0,0.00044109,31]
[325345944,1714745475179,-500.0,0.00044109,31]
[325345945,1714745475189,-500.0,0.00044109,31]
[325345946,1714745475199,-3198.86,0.00044109,31]
[325345947,1714745475208,-1012.33,0.00044109,31]
[325345948,1714745475217,-1651.18,0.00044109,31]
[325345949,1714745475227,-9479.82,0.00044109,31]
[325345950,1714745475236,-501.65970063,0.00044109,31]
[325345951,1714745475245,-500.0,0.00044109,31]
[325345952,1714745475255,-616.98,0.00044109,31]
[325345953,1714745475264,-1651.8,0.00044109,31]
[325345954,1714745475273,-2866.64,0.00044109,31]
[325345955,1714745475282,-500.0,0.00044109,31]
[325345956,1714745475292,-500.0,0.00044109,31]
[325345957,1714745475302,-500.0,0.00044109,31]
[325345958,1714745475311,-500.0,0.00044109,31]
[325345959,1714745475320,-530.02354945,0.00044109,31]
[325345960,1714745475329,-512.77,0.00044109,31]
[325345961,1714745475338,-880.982265,0.00044109,14]
[325345962,1714745475348,-500.0,0.00044109,31]
[325345963,1714745475358,-503.46806282,0.00044109,31]
[325345964,1714745475368,-500.0,0.00044109,31]
[325345965,1714745475377,-500.0,0.00044109,31]
[325345966,1714745475390,-689.5,0.00044109,31]
[325345967,1714745475400,-3347.04,0.00044109,31]
[325345968,1714745475410,-500.0,0.00044109,31]
[325345969,1714745475420,-500.0,0.00044109,31]
[325345970,1714745475430,-2080.53,0.00044109,31]
[325345971,1714745475439,-1269.6,0.00044109,2]
[325345972,1714745475448,-1113.97,0.00044109,31]
[325345973,1714745475457,-500.0,0.00044109,31]
[325345974,1714745475467,-600.67,0.00044109,31]
[325345975,1714745475476,-1319.55,0.00044109,31]
[325345976,1714745475485,-241.518024,0.00044109,14]
[325345977,1714745475494,-754.07,0.00044109,31]
[325345978,1714745475503,-2684.48,0.00044109,31]
[325345979,1714745475513,-1763.5,0.00044109,31]
[325345980,1714745475523,-500.0,0.00044109,31]
[325345981,1714745475532,-1419.85,0.00044109,31]
[325345982,1714745475542,-500.0,0.00044109,31]
[325345983,1714745475551,-500.0,0.00044109,31]
[325345984,1714745475560,-508.57,0.00044109,2]
[325345985,1714745475569,-500.0,0.00044109,31]
[325345986,1714745475579,-500.0,0.00044109,31]
[325345987,1714745475588,-500.0,0.00044109,31]
[325345988,1714745475597,-261.530717,0.00044109,14]
[325345989,1714745475607,-5404.16,0.00044109,31]
[325345990,1714745475616,-2815.727407,0.00044109,14]
[325345991,1714745475626,-1190.74,0.00044109,31]
[325345992,1714745475637,-32833.12,0.00044109,31]
[325345993,1714745475647,-500.0,0.00044109,31]
[325345994,1714745475656,-500.0,0.00044109,31]
[325345995,1714745475665,-3152.57,0.00044109,31]
[325345996,1714745475674,-589.04,0.00044109,31]
[325345997,1714745475683,-500.0,0.00044109,31]
[325345998,1714745475693,-397.25997293,0.00044109,31]
[325345999,1714745475703,-500.0,0.00044109,31]
[325346000,1714745475712,-2815.727407,0.00044109,14]
[325346001,1714745475722,-2000.0,0.00044109,120]
[325346002,1714745475731,-500.0,0.00044109,31]
[325346003,1714745475741,-261.530717,0.00044109,14]
[325346004,1714745475750,-500.0,0.00044109,31]
[325346005,1714745475759,-500.0,0.00044109,31]
[325346006,1714745475769,-500.0,0.00044109,31]
[325346007,1714745475779,-782.62,0.00044109,31]
[325346008,1714745475788,-500.0,0.00044109,31]
[325346009,1714745475798,-500.0,0.00044109,31]
[325346010,1714745475807,-812.41,0.00044109,31]
[325346011,1714745475816,-500.0,0.00044109,31]
[325346012,1714745475826,-500.0,0.00044109,31]
[325346013,1714745475835,-500.0,0.00044109,31]
[325346014,1714745475845,-500.0,0.00044109,31]
[325346015,1714745475855,-1366.86,0.00044109,31]
[325346016,1714745475866,-2304.63,0.00044109,31]
[325346017,1714745475877,-446.89,0.00044109,31]
[325346018,1714745475890,-500.0,0.00044109,31]
[325346019,1714745475899,-500.0,0.00044109,31]
[325346020,1714745475910,-501.22936019,0.00044109,31]
[325346021,1714745475923,-567.24147373,0.00044109,31]
[325346022,1714745475933,-500.0,0.00044109,31]
[325346023,1714745475942,-2337.56,0.00044109,2]
[325346024,1714745475951,-500.0,0.00044109,31]
[325346025,1714745475960,-500.0,0.00044109,31]
[325346026,1714745475970,-3784.01,0.00044109,31]
[325346027,1714745475979,-608.77,0.00044109,31]
[325346028,1714745475988,-500.0,0.00044109,31]
[325346029,1714745475998,-500.0,0.00044109,31]
[325346030,1714745476008,-1148.94,0.00044109,31]
[325346031,1714745476018,-500.0,0.00044109,31]
[325346032,1714745476027,-186.699949,0.00044109,14]
[325346033,1714745476038,-500.0,0.00044109,31]
[325346034,1714745476047,-1736.64,0.00044109,31]
[325346035,1714745476057,-500.0,0.00044109,31]
[325346036,1714745476066,-1000.0,0.00044109,15]
[325346037,1714745476076,-1145.71,0.00044109,31]
[325346038,1714745476086,-500.0,0.00044109,31]
[325346039,1714745476096,-1406.67,0.00044109,31]
[325346040,1714745476105,-500.0,0.00044109,31]
[325346041,1714745476114,-5828.27,0.00044109,31]
[325346042,1714745476124,-3588.23,0.00044109,31]
[325346043,1714745476136,-500.0,0.00044109,31]
[325346044,1714745476145,-1644.72,0.00044109,31]
[325346045,1714745476153,-500.0,0.00044109,31]
[325346046,1714745476162,-500.0,0.00044109,31]
[325346047,1714745476171,-9522.78,0.00044109,31]
[325346048,1714745476180,-500.0,0.00044109,31]
[325346049,1714745476189,-186.699949,0.00044109,14]
[325346050,1714745476198,-1121.59,0.00044109,31]
[325346051,1714745476209,-1566.28,0.00044109,31]
[325346052,1714745476218,-1786.19,0.00044109,31]
[325346053,1714745476227,-584.75,0.00044109,31]
[325346054,1714745476237,-2122.66,0.00044109,31]
[325346055,1714745476247,-500.0,0.00044109,31]
[325346056,1714745476256,-500.0,0.00044109,31]
[325346057,1714745476265,-997.31,0.00044109,31]
[325346058,1714745476275,-540.47,0.00044109,31]
[325346059,1714745476284,-774.85,0.00044109,31]
[325346060,1714745476293,-1733.72,0.00044109,31]
[325346061,1714745476302,-500.0,0.00044109,31]
[325346062,1714745476311,-500.0,0.00044109,31]
[325346063,1714745476321,-2799.95,0.00044109,31]
[325346064,1714745476330,-500.0,0.00044109,31]
[325346065,1714745476340,-7863.95,0.00044109,31]
[325346066,1714745476350,-3059.38,0.00044109,31]
[325346067,1714745476359,-500.0,0.00044109,31]
[325346068,1714745476369,-1868.73,0.00044109,31]
[325346069,1714745476378,-500.0,0.00044109,31]
[325346070,1714745476394,-1445.95,0.00044109,31]
[325346071,1714745476403,-25660.85,0.00044109,31]
[325346072,1714745476413,-766.0,0.00044109,31]
[325346073,1714745476422,-500.0,0.00044109,31]
[325346074,1714745476432,-1667.06,0.00044109,31]
[325346075,1714745476442,-513.72694201,0.00044109,31]
[325346076,1714745476451,-605.03,0.00044109,31]
[325346077,1714745476462,-5472.22,0.00044109,31]
[325346078,1714745476471,-1599.92,0.00044109,31]
[325346079,1714745476481,-1041.49,0.00044109,31]
[325346080,1714745476490,-969.94,0.00044109,31]
[325346081,1714745476499,-859.46,0.00044109,31]
[325346082,1714745476508,-500.0,0.00044109,31]
[325346083,1714745476518,-2158.15,0.00044109,31]
[325346084,1714745476527,-3522.41,0.00044109,31]
[325346085,1714745476537,-500.0,0.00044109,31]
[325346086,1714745476546,-7720.08,0.00044109,31]
[325346087,1714745476555,-500.0,0.00044109,31]
[325346088,1714745476565,-2804.63,0.00044109,31]
[325346089,1714745476574,-500.0,0.00044109,31]
[325346090,1714745476584,-1620.11,0.00044109,31]
[325346091,1714745476593,-549.06,0.00044109,31]
[325346092,1714745476602,-500.0,0.00044109,31]
[325346093,1714745476612,-3728.89,0.00044109,31]
[325346094,1714745476621,-500.0,0.00044109,31]
[325346095,1714745476631,-500.0,0.00044109,31]
[325346096,1714745476640,-500.0,0.00044109,31]
[325346097,1714745476650,-500.0,0.00044109,31]
[325346098,1714745476659,-500.0,0.00044109,31]
[325346099,1714745476669,-1251.98,0.00044109,31]
[325346100,1714745476678,-1192.35,0.00044109,31]
[325346101,1714745476688,-2701.11,0.00044109,31]
[325346102,1714745476698,-918.66,0.00044109,31]
[325346103,1714745476707,-556.92,0.00044109,31]
[325346104,1714745476717,-1380.09,0.00044109,31]
[325346105,1714745476728,-3488.36,0.00044109,31]
[325346106,1714745476738,-13978.57,0.00044109,31]
[325346107,1714745476748,-984.87,0.00044109,31]
[325346108,1714745476758,-1299.29,0.00044109,31]
[325346109,1714745476767,-588.85,0.00044109,31]
[325346110,1714745476777,-500.0,0.00044109,31]
[325346111,1714745476787,-500.0,0.00044109,31]
[325346112,1714745476796,-4790.7,0.00044109,31]
[325346113,1714745476806,-500.0,0.00044109,31]
[325346114,1714745476816,-500.0,0.00044109,31]
[325346115,1714745476825,-11816.9,0.00044109,31]
[325346116,1714745476835,-1728.16,0.00044109,31]
[325346117,1714745476844,-1343.68,0.00044109,31]
[325346118,1714745476854,-686.98,0.00044109,31]
[325346119,1714745476864,-4730.02,0.00044109,31]
[325346120,1714745476882,-500.0,0.00044109,31]
[325346121,1714745476892,-500.0,0.00044109,31]
[325346122,1714745476901,-3974.99,0.00044109,31]
[325346123,1714745476911,-5064.42,0.00044109,31]
[325346124,1714745476920,-151.0,0.00044109,14]
[325346125,1714745476932,-699.13,0.00044109,31]
[325346126,1714745476942,-1297.04,0.00044109,31]
[325346127,1714745476951,-500.0,0.00044109,31]
[325346128,1714745476960,-500.0,0.00044109,31]
[325346129,1714745476969,-2824.3,0.00044109,31]
[325346130,1714745476979,-2158.34,0.00044109,31]
[325346131,1714745476988,-1669.24,0.00044109,31]
[325346132,1714745476998,-653.3,0.00044109,31]
[325346133,1714745477007,-898.64,0.00044109,31]
[325346134,1714745477017,-661.12,0.00044109,31]
[325346135,1714745477026,-500.0,0.00044109,31]
[325346136,1714745477036,-1138.68,0.00044109,31]
[325346137,1714745477045,-925.85,0.00044109,31]
[325346138,1714745477055,-1219.93,0.00044109,31]
[325346139,1714745477066,-500.0,0.00044109,31]
[325346140,1714745477075,-218.918205,0.00044109,14]
[325346141,1714745477086,-24249.63,0.00044109,31]
[325346142,1714745477096,-3348.7,0.00044109,31]
[325346143,1714745477105,-3676.69,0.00044109,31]
[325346144,1714745477115,-500.0,0.00044109,31]
[325346145,1714745477124,-26478.2,0.00044109,31]
[325346146,1714745477134,-500.0,0.00044109,31]
[325346147,1714745477143,-500.0,0.00044109,31]
[325346148,1714745477152,-812.98,0.00044109,31]
[325346149,1714745477161,-500.0,0.00044109,31]
[325346150,1714745477171,-218.918205,0.00044109,14]
[325346151,1714745477180,-500.0,0.00044109,31]
[325346152,1714745477189,-500.0,0.00044109,31]
[325346153,1714745477198,-151.0,0.00044109,14]
[325346154,1714745477207,-851.56,0.00044109,31]
[325346155,1714745477216,-1481.69,0.00044109,31]
[325346156,1714745477226,-540.76,0.00044109,31]
[325346157,1714745477235,-2427.39,0.00044109,31]
[325346158,1714745477244,-837.33,0.00044109,31]
[325346159,1714745477254,-500.0,0.00044109,31]
[325346160,1714745477263,-67806.78,0.00044109,31]
[325346161,1714745477272,-1029.09,0.00044109,31]
[325346162,1714745477282,-5252.47,0.00044109,31]
[325346163,1714745477291,-947.73,0.00044109,31]
[325346164,1714745477300,-480.73004892,0.00044109,31]
[325346165,1714745477310,-5714.68,0.00044109,31]
[325346166,1714745477319,-18554.99,0.00044109,31]
[325346167,1714745477329,-500.0,0.00044109,31]
[325346168,1714745477338,-4193.67,0.00044109,31]
[325346169,1714745477348,-869.394398,0.00044109,14]
[325346170,1714745477357,-807.2,0.00044109,31]
[325346171,1714745477366,-4487.9,0.00044109,31]
[325346172,1714745477375,-500.0,0.00044109,31]
[325346173,1714745477386,-500.0,0.00044109,31]
[325346174,1714745477396,-510.38806035,0.00044109,31]
[325346175,1714745477407,-575.76,0.00044109,31]
[325346176,1714745477417,-500.0,0.00044109,31]
[325346177,1714745477427,-500.0,0.00044109,31]
[325346178,1714745477437,-151.0,0.00044109,14]
[325346179,1714745477447,-869.394398,0.00044109,14]
[325346180,1714745477456,-220.200581,0.00044109,14]
[325346181,1714745477466,-500.0,0.00044109,31]
[325346182,1714745477476,-1463.22,0.00044109,31]
[325346183,1714745477486,-1963.68,0.00044109,31]
[325346184,1714745477496,-500.0,0.00044109,31]
[325346185,1714745477505,-500.0,0.00044109,31]
[325346186,1714745477516,-7113.38,0.00044109,31]
[325346187,1714745477526,-3351.98,0.00044109,31]
[325346188,1714745477536,-1613.56,0.00044109,31]
[325346189,1714745477547,-500.0,0.00044109,2]
[325346190,1714745477557,-5259.31,0.00044109,31]
[325346191,1714745477569,-500.0,0.00044109,31]
[325346192,1714745477580,-500.0,0.00044109,31]
[325346193,1714745477592,-1918.31,0.00044109,31]
[325346194,1714745477604,-220.200581,0.00044109,14]
[325346195,1714745477615,-4694.75,0.00044109,31]
[325346196,1714745477626,-500.0,0.00044109,31]
[325346197,1714745477640,-500.0,0.00044109,31]
[325346198,1714745477651,-500.0,0.00044109,31]
[325346199,1714745477660,-500.0,0.00044109,31]
[325346200,1714745477670,-151.0,0.00044109,14]
[325346201,1714745477680,-2845.79,0.00044109,31]
[325346202,1714745477690,-2132.98,0.00044109,7]
[325346203,1714745477700,-908.99,0.00044109,31]
[325346204,1714745477710,-2896.16,0.00044109,31]
[325346205,1714745477720,-500.0,0.00044109,31]
[325346206,1714745477729,-1817.32,0.00044109,31]
[325346207,1714745477739,-500.0,0.00044109,31]
[325346208,1714745477748,-2217.25,0.00044109,31]
[325346209,1714745477758,-500.0,0.00044109,31]
[325346210,1714745477768,-500.0,0.00044109,31]
[325346211,1714745477779,-500.0,0.00044109,31]
[325346212,1714745477788,-500.0,0.00044109,31]
[325346213,1714745477798,-4256.41,0.00044109,31]
[325346214,1714745477808,-1071.25,0.00044109,31]
[325346215,1714745477818,-581.64,0.00044109,31]
[325346216,1714745477828,-151.0,0.00044109,14]
[325346217,1714745477838,-500.0,0.00044109,31]
[325346218,1714745477848,-500.0,0.00044109,31]
[325346219,1714745477858,-5502.37,0.00044109,31]
[325346220,1714745477872,-1684.02,0.00044109,31]
[325346221,1714745477883,-500.0,0.00044109,31]
[325346222,1714745477892,-8428.88,0.00044109,31]
[325346223,1714745477902,-9117.6,0.00044109,31]
[325346224,1714745477917,-1075.78,0.00044109,31]
[325346225,1714745477927,-500.0,0.00044109,31]
[325346226,1714745477938,-3279.13,0.00044109,31]
[325346227,1714745477949,-15909.96,0.00044109,31]
[325346228,1714745477959,-4953.73,0.00044109,31]
[325346229,1714745477968,-151.0,0.00044109,14]
[325346230,1714745477978,-3008.08,0.00044109,31]
[325346231,1714745477988,-548.31,0.00044109,31]
[325346232,1714745477999,-588.45,0.00044109,31]
[325346233,1714745478010,-500.0,0.00044109,31]
[325346234,1714745478020,-1253.78,0.00044109,31]
[325346235,1714745478031,-500.0,0.00044109,31]
[325346236,1714745478040,-1837.15,0.00044109,31]
[325346237,1714745478050,-3406.01,0.00044109,31]
[325346238,1714745478060,-875.21,0.00044109,31]
[325346239,1714745478069,-1229.17,0.00044109,31]
[325346240,1714745478079,-500.0,0.00044109,31]
[325346241,1714745478089,-5805.53,0.00044109,31]
[325346242,1714745478099,-500.0,0.00044109,31]
[325346243,1714745478108,-988.38,0.00044109,31]
[325346244,1714745478118,-670.18,0.00044109,31]
[325346245,1714745478127,-500.0,0.00044109,31]
[325346246,1714745478139,-13533.27,0.00044109,31]
[325346247,1714745478149,-2238.81,0.00044109,31]
[325346248,1714745478158,-1170.22,0.00044109,31]
[325346249,1714745478168,-1984.29,0.00044109,31]
[325346250,1714745478178,-282.378133,0.00044109,14]
[325346251,1714745478187,-1248.71,0.00044109,31]
[325346252,1714745478197,-2360.33,0.00044109,31]
[325346253,1714745478207,-500.0,0.00044109,31]
[325346254,1714745478216,-500.0,0.00044109,31]
[325346255,1714745478226,-1161.43,0.00044109,31]
[325346256,1714745478236,-2405.2051287,0.00044109,31]
[325346257,1714745479188,-9786.16089832,0.00044109,31]
[325346258,1714745479200,-293.31397298,0.00044109,31]
[325346259,1714745479209,-4371.77,0.00044109,31]
[325346260,1714745479219,-738.59793037,0.00044109,31]
[325346261,1714745479327,-293.33957425,0.00044109,31]
[325346262,1714745480128,-548.0,0.00012989,2]
[325346263,1714745480141,-1822.64,0.00036087,2]
[325346264,1714745480151,-518.98,0.00036087,2]
[325346265,1714745480160,-150.0,0.00036087,2]
[325346266,1714745480170,-111.07579612,0.00039721,90]
[325346267,1714745480253,-2388.92420388,0.00039721,90]
[325346268,1714745480263,-23452.23,0.00043835,30]
[325346269,1714745480272,-151.0,0.00044,14]
[325346270,1714745480281,-151.0,0.00044,14]
[325346271,1714745480291,-151.0,0.00044,14]
[325346272,1714745480300,-505.06249538,0.00044109,31]
[325346273,1714745480309,-7572.41,0.00044109,31]
[325346274,1714745480318,-282.378133,0.00044109,14]
[325346275,1714745480329,-805.25,0.00044109,31]
[325346276,1714745480338,-500.0,0.00044109,31]
[325346277,1714745480347,-695.96,0.00044109,31]
[325346278,1714745480357,-8658.52,0.00044109,31]
[325346279,1714745480367,-500.0,0.00044109,31]
[325346280,1714745480377,-2423.99,0.00044109,31]
[325346281,1714745480388,-500.0,0.00044109,31]
[325346282,1714745480399,-1573.98,0.00044109,31]
[325346283,1714745480409,-816.72,0.00044109,31]
[325346284,1714745480419,-11042.82,0.00044109,31]
[325346285,1714745480428,-1762.55,0.00044109,31]
[325346286,1714745480438,-2017.56,0.00044109,31]
[325346287,1714745480448,-522.65861557,0.00044109,31]
[325346288,1714745480457,-704.97,0.00044109,31]
[325346289,1714745480467,-500.0,0.00044109,31]
[325346290,1714745480476,-1958.49,0.00044109,31]
[325346291,1714745480486,-500.0,0.00044109,31]
[325346292,1714745480495,-500.0,0.00044109,31]
[325346293,1714745480505,-10592.63,0.00044109,31]
[325346294,1714745480514,-511.38,0.00044109,30]
[325346295,1714745480524,-151.0,0.00044109,14]
[325346296,1714745480534,-2813.84,0.00044109,31]
[325346297,1714745480543,-746.08,0.00044109,31]